{"text_format":"1","workbook":"xlsx","n_sheets":7,"sheets":["DATOS CARTA00","lec.2","ESCRITURA","PULSACIONES","lec.03","lec.04","lec.05"],"not_rendered":{"charts":0,"images":2,"macros":1,"external_links":0,"defined_names":0,"comments":0,"pivot_tables":0},"unopened":[],"bounds":{"document_bytes":16777216,"sheet_cells":100000,"rows_first":2000,"rows_last":500,"rows_between":2000,"halvings":0,"cell_chars":16384,"cell_head_chars":4096},"cells_cut":0,"cells_raw":0,"read":"whole","date_system":"1900"}

{"sheet":"DATOS CARTA00","index":0,"n_rows":58,"n_cols":3,"rows_kept":58,"cut":false,"hidden":true,"merged":[]}
[1,"modificar cargamos mucha modificarlo campo comandos preocupamos",1]
[2,"modificando hacemos modificaciones comodidad marcamoso complejo",1]
[3,"incomodidad decidimos almacenados modificado implica funciones asar",1]
[4,"conseguido funciones considerar principal coincidencia referencia de",1]
[5,"incluso conocer sugerencia seleccionar opciones vista provisto con sal",1]
[6,"provisto convertir visitar obtuvo visualmente motivos provenientes campo",1]
[7,"contuviese evita operativo evitando convierte evento productividad funcion",1]
[8,"vitales virtudes privado eventos ventaja evitarse significativo con el sol",1]
[9,"STOP",1]
[10]
[11]
[12]
[13]
[14]
[15]
[16]
[17]
[18]
[19]
[20]
[21]
[22]
[23]
[24]
[25]
[26]
[27]
[28]
[29]
[30]
[31]
[32]
[33]
[34]
[35]
[36]
[37]
[38]
[39]
[40]
[41]
[42]
[43]
[44]
[45]
[46]
[47]
[48]
[49]
[50]
[51]
[52]
[53]
[54]
[55]
[56]
[57]
[58]

{"sheet":"lec.2","index":1,"n_rows":15,"n_cols":3,"rows_kept":15,"cut":false,"hidden":true,"merged":[]}
[1,"significativos convertido equivalente ventana sucesivamente variante",2]
[2,"respectivo objetos probablemente tablas estaba obtuvo ejecutables ver",2]
[3,"basta habitual trabajo acostumbra bits bastante debidamente estaba vista",2]
[4,"establecen objeto trabaja absoluta substituirla vista provisto conviene",2]
[5,"convertir visitar obtuvo visualmente motivos provenientes contener verso",2]
[6,"contuviese evita operativo evitando conveniente evento productivo",2]
[7,"productividad vitales virtudes privado eventos ventaja evitarse eva",2]
[8,"significativos convertido equivalente ventana sucesivamente varia",2]
[9,"STOP",2]
[10]
[11]
[12]
[13]
[14]
[15]

{"sheet":"ESCRITURA","index":2,"n_rows":15,"n_cols":13,"rows_kept":15,"cut":false,"hidden":false,"merged":[[5,4,5,5],[13,0,13,9],[14,0,14,9],[12,0,12,9],[11,0,11,9],[10,0,10,10],[1,8,2,8],[0,10,4,10],[0,4,0,6],[3,0,3,8],[4,0,4,8],[0,9,4,9]]}
[null,null,null,null,"habilitar este contenido",null,null,null,null,null,null,1,{"$f":"NOW()","v":41715.709782060185}]
[{"$f":"A3-M2","v":348.2921333333361},null,null,null,null,"lección",{"$f":"L11","v":1},"nombre",null,null,null,null,41367.417648726849]
[{"$f":"NOW()","v":41715.709782060185},{"$f":"M1-M6","v":352.36008506944199},null,null,"pulsaciones",{"$f":"M5","v":""},"minuto","NUEVO",null,null,null,1,{"$f":"(HOUR(L5)*3600)+(MINUTE(L5)*60+SECOND(L5))","v":25240}]
[{"$f":"A11","v":"modificar cargamos mucha modificarlo campo comandos preocupamos"},null,null,null,null,null,null,null,null,null,null,550,{"$f":"IF(M3=0,\"\",L4/M3*60)","v":1.307448494453249}]
[null,null,null,null,null,null,null,null,null,null,null,{"$f":"A2","v":348.2921333333361},{"$f":"IF(A4=\"STOP\",M4,\"\")","v":""}]
[null,null,null,null,{"$f":"A2","v":348.2921333333361},null,null,null,null,null,null,{"$f":"TODAY()","v":"2014-03-17"},41363.349696990743]
[]
[]
[]
[]
[{"$f":"VLOOKUP(L1,'DATOS CARTA00'!A1:B50,2,FALSE)","v":"modificar cargamos mucha modificarlo campo comandos preocupamos"},null,null,null,null,null,null,null,null,null,null,{"$f":"VLOOKUP(L1,'DATOS CARTA00'!A1:C23,3,FALSE)","v":1}]
[{"$f":"VLOOKUP(L1,lec.2!A1:B17,2,FALSE)","v":"significativos convertido equivalente ventana sucesivamente variante"},null,null,null,null,null,null,null,null,null,null,{"$f":"VLOOKUP(L1,lec.2!A1:C15,3,FALSE)","v":2}]
[{"$f":"VLOOKUP(L1,lec.03!A1:B18,2,FALSE)","v":"contuviese evita operativo evitando convierte evento productividad vital"},null,null,null,null,null,null,null,null,null,null,{"$f":"VLOOKUP(L1,lec.03!A1:C24,3,FALSE)","v":3}]
[{"$f":"VLOOKUP(L1,lec.04!A1:B10,2,FALSE)","v":"reutilizar optimizado ayuda ya incluyendo hay proyectos mayor hayado"},null,null,null,null,null,null,null,null,null,null,{"$f":"VLOOKUP(L1,lec.04!A1:C17,3,FALSE)","v":4}]
[{"$f":"VLOOKUP(L1,lec.05!A1:B100,2,FALSE)","v":"zameca explosivo, impedir, visualizar, proximidad. casa mecachis-casi"},null,null,null,null,null,null,null,null,null,null,{"$f":"VLOOKUP(L1,lec.05!A1:C24,3,FALSE)","v":5}]

{"sheet":"PULSACIONES","index":3,"n_rows":16,"n_cols":12,"rows_kept":16,"cut":false,"hidden":false,"merged":[[0,4,0,5]]}
[{"$f":"VLOOKUP(G1,B3:E5,4,FALSE)","v":{"$error":"#REF!"}},null,"tiempo","lección","PULSACIONES MINUTO",null,{"$f":"MAX((#REF!))","v":{"$error":"#REF!"}},{"$f":"VLOOKUP(G2,B3:E5,4,FALSE)","v":{"$error":"#REF!"}},"años","meses","días",{"$f":"#REF!","v":{"$error":"#REF!"}}]
[{"$f":"TODAY()","v":"2014-03-17"},null,null,null,"nombre","volver",{"$f":"LARGE(#REF!,2)","v":{"$error":"#REF!"}},{"$f":"IF(G2,#REF!,)","v":{"$error":"#REF!"}},{"$f":"DATEDIF(L1,#REF!,\"y\")","v":{"$error":"#REF!"}},{"$f":"DATEDIF(L1,#REF!,\"ym\")","v":{"$error":"#REF!"}},{"$f":"DATEDIF(L1,#REF!,\"d\")","v":{"$error":"#REF!"}}]
["2013-04-03",183.33333333333331,"00:03:02.130",5,"NUEVO"]
["2013-03-30",229.16666666666669,"00:02:26.160",1,"NUEVO"]
["2013-03-23",178.37837837837836,"00:03:06.650",5,"NUEVO"]
["2013-03-23",177.41935483870969,"00:03:08.430",4,"NUEVO"]
["2013-03-23",192.98245614035088,"00:02:52.670",3,"NUEVO"]
["2013-03-23",195.26627218934914,"00:02:50.990",2,"NUEVO"]
["2013-03-23",188.57142857142856,"00:02:56.970",2,"NUEVO"]
["2013-03-23",229.16666666666669,"00:02:26.300",1,"NUEVO"]
["2013-03-23",221.47651006711408,"00:02:31.730",1,"NUEVO"]
["2012-03-13",157.14285714285714,"00:03:31.910",5,"NUEVO"]
["2012-03-13",182.32044198895028,"00:03:03.280",4,"NUEVO"]
["2012-03-13",171.875,"00:03:14.020",3,"NUEVO"]
["2012-03-13",201.21951219512195,"00:02:46.980",2,"NUEVO"]
["2012-03-13",186.4406779661017,"00:03:00.030",1,"NUEVO"]

{"sheet":"lec.03","index":4,"n_rows":24,"n_cols":3,"rows_kept":24,"cut":false,"hidden":true,"merged":[]}
[1,"contuviese evita operativo evitando convierte evento productividad vital",3]
[2,"virtudes privado eventos ventajas evitarse significado significativos con",3]
[3,"equivalente ventana sucesivamente variante respectivos habitualmente",3]
[4,"substituciones biblioteca libertad invaluables variables abrevias obtuvo",3]
[5,"abrevia obtuvo vista provisto convertir visitar visualmente motivo puso",3]
[6,"proveniente evitar operativo conveniente centralizada rodriguez interfaz",3]
[7,"realizado utilizar vez garantizo muy voy ayudase cuyo estoy hayan bytes",3]
[8,"copyright incluya mayor realizadas capaz familias paz",3]
[9,"STOP",3]
[10]
[11]
[12]
[13]
[14]
[15]
[16]
[17]
[18]
[19]
[20]
[21]
[22]
[23]
[24]

{"sheet":"lec.04","index":5,"n_rows":26,"n_cols":3,"rows_kept":26,"cut":false,"hidden":true,"merged":[]}
[1,"reutilizar optimizado ayuda ya incluyendo hay proyectos mayor hayado",4]
[2,"hayamos realizar lienzo realizo inicializan naturaleza utilizada utilizan dia",4]
[3,"utilizaremos optimiza desplazamientos utilizada comienzos mezcla ya",4]
[4,"optimizado ayuda ya incluyendo hay proyectos mayor haya hayamos vale",4]
[5,"optimizaciones comenzar izquierda el mayor proyecto que hayamos ya",4]
[6,"freeware web windows software shareware password network existen",4]
[7,"extra examinar exactamente explicado texto expandir unix externo extras",4]
[8,"unix externo exclusiva explicar extraño explican excepto experiencias",4]
[9,"STOP",4]
[10]
[11]
[12]
[13]
[14]
[15]
[16]
[17]
[18]
[19]
[20]
[21]
[22]
[23]
[24]
[25]
[26]

{"sheet":"lec.05","index":6,"n_rows":45,"n_cols":3,"rows_kept":45,"cut":false,"hidden":true,"merged":[]}
[1,"zameca explosivo, impedir, visualizar, proximidad. casa mecachis-casi",5]
[2,"médico. extraño password. calamitoso. Vizcaya, Madrid. mas cerca,",5]
[3,"casa de mi amigo es muy gramatical existe vil. La Comunidad de Madrid",5]
[4,"segunda Comunidad del Estado español en número de industrias. La mayor",5]
[5,"de ellas están en lugares cercanos a la capital. Sevilla, Palma de Mallorca",5]
[6,"Granada, Cordoba. Las químicas, las eléctricas y las de la construcción",5]
[7,"industrias alimentarias elaboran o transforman los productos agrícolas",5]
[8,"de industrias. jamás, Beltrán, José, mañana, vendrás Fin. Jaén",5]
[9,"STOP",5]
[10]
[11]
[12]
[13]
[14]
[15]
[16]
[17]
[18]
[19]
[20]
[21]
[22]
[23]
[24]
[25]
[26]
[27]
[28]
[29]
[30]
[31]
[32]
[33]
[34]
[35]
[36]
[37]
[38]
[39]
[40]
[41]
[42]
[43]
[44]
[45]